[Event "Early-Titled-Tuesday-Blitz-February-06-2024"]
[Site "Chess.com"]
[Date "2024.02.06"]
[Round "5"]
[White "yaguigor"]
[Black "Irina_Mikhaylova"]
[Result "1-0"]
[WhiteElo "2743"]
[BlackElo "2332"]
[TimeControl "180+1"]
[EndTime "8:56:30 PST"]
[Termination "yaguigor won by resignation"]

1. Nf3 {[%clk 0:02:51.6]} 1... Nf6 {[%clk 0:02:59.7]} 2. c4 {[%clk 0:02:51.1]}
2... g6 {[%clk 0:02:59.2]} 3. Nc3 {[%clk 0:02:51.2]} 3... d5 {[%clk 0:02:59.6]}
4. cxd5 {[%clk 0:02:50.9]} 4... Nxd5 {[%clk 0:03:00.5]} 5. Qb3 {[%clk
0:02:51.1]} 5... c6 {[%clk 0:02:51]} 6. d4 {[%clk 0:02:45.8]} 6... Bg7 {[%clk
0:02:48.3]} 7. e4 {[%clk 0:02:42.6]} 7... Nb6 {[%clk 0:02:19]} 8. h3 {[%clk
0:02:35.7]} 8... O-O {[%clk 0:02:18.3]} 9. Be3 {[%clk 0:02:34.8]} 9... Be6
{[%clk 0:02:18.4]} 10. Qc2 {[%clk 0:02:33.7]} 10... Bc4 {[%clk 0:02:17.6]} 11.
Be2 {[%clk 0:02:22]} 11... N8d7 {[%clk 0:01:58.3]} 12. O-O {[%clk 0:02:19.4]}
12... Nf6 {[%clk 0:01:57.6]} 13. Rad1 {[%clk 0:02:11.8]} 13... Bxe2 {[%clk
0:01:52.6]} 14. Qxe2 {[%clk 0:02:11]} 14... Qc7 {[%clk 0:01:53]} 15. Rc1 {[%clk
0:02:04.1]} 15... Rad8 {[%clk 0:01:46.9]} 16. Rfd1 {[%clk 0:01:56.2]} 16... Qb8
{[%clk 0:01:47]} 17. b3 {[%clk 0:01:53.3]} 17... Nfd7 {[%clk 0:01:20.7]} 18. e5
{[%clk 0:01:44.4]} 18... Rfe8 {[%clk 0:01:09.9]} 19. Ng5 {[%clk 0:01:34.7]}
19... Nf8 {[%clk 0:01:08.9]} 20. Qg4 {[%clk 0:01:32.8]} 20... h6 {[%clk
0:00:56.1]} 21. Nf3 {[%clk 0:01:30.5]} 21... Qc8 {[%clk 0:00:53.4]} 22. Qh4
{[%clk 0:01:27.4]} 22... g5 {[%clk 0:00:51.6]} 23. Qh5 {[%clk 0:01:26.5]} 23...
Qf5 {[%clk 0:00:49.2]} 24. Ne2 {[%clk 0:01:26.3]} 24... Qg6 {[%clk 0:00:44.3]}
25. Ng3 {[%clk 0:01:26.3]} 25... Qxh5 {[%clk 0:00:43.8]} 26. Nxh5 {[%clk
0:01:26.9]} 26... Ne6 {[%clk 0:00:42.4]} 27. g4 {[%clk 0:01:09.7]} 27... Nd5
{[%clk 0:00:33.6]} 28. h4 {[%clk 0:01:07.8]} 28... Rd7 {[%clk 0:00:28.5]} 29.
hxg5 {[%clk 0:01:06.9]} 29... Nxe3 {[%clk 0:00:28.4]} 30. fxe3 {[%clk
0:01:07.7]} 30... Nxg5 {[%clk 0:00:22.6]} 31. Nxg5 {[%clk 0:00:55.2]} 31... hxg5
{[%clk 0:00:23.5]} 32. Rf1 {[%clk 0:00:55.2]} 32... Rf8 {[%clk 0:00:15.6]} 33.
Rf5 {[%clk 0:00:44.5]} 33... e6 {[%clk 0:00:13.7]} 34. Rf2 {[%clk 0:00:43.3]}
34... Kh7 {[%clk 0:00:09.6]} 35. Kg2 {[%clk 0:00:40.2]} 35... Kg6 {[%clk
0:00:09.6]} 36. b4 {[%clk 0:00:35.4]} 36... Rh8 {[%clk 0:00:09.5]} 37. a4 {[%clk
0:00:33.3]} 37... Rc8 {[%clk 0:00:08.8]} 38. Kf3 {[%clk 0:00:27.1]} 38... Rh8
{[%clk 0:00:08]} 39. Ke4 {[%clk 0:00:25.9]} 39... Rf8 {[%clk 0:00:08.1]} 40.
Rcf1 {[%clk 0:00:21.5]} 40... Rd5 {[%clk 0:00:07.8]} 41. Rh1 {[%clk 0:00:19.1]}
41... Rh8 {[%clk 0:00:07.5]} 42. Rhf1 {[%clk 0:00:17.8]} 42... Rf8 {[%clk
0:00:07.6]} 43. Rc2 {[%clk 0:00:15.3]} 43... a5 {[%clk 0:00:07.3]} 44. Rb1
{[%clk 0:00:13]} 44... Ra8 {[%clk 0:00:07.2]} 45. b5 {[%clk 0:00:09.7]} 45...
Rc8 {[%clk 0:00:05.9]} 46. Rbc1 {[%clk 0:00:09]} 46... Rd7 {[%clk 0:00:02.4]}
47. bxc6 {[%clk 0:00:08.7]} 47... bxc6 {[%clk 0:00:03]} 48. Rxc6 {[%clk
0:00:09]} 48... Rb8 {[%clk 0:00:03.6]} 49. Rc7 {[%clk 0:00:07.8]} 49... Rxc7
{[%clk 0:00:02.6]} 50. Rxc7 {[%clk 0:00:07.3]} 50... Rb4 {[%clk 0:00:03.2]} 51.
Rc8 {[%clk 0:00:07.6]} 51... Rxa4 {[%clk 0:00:02.9]} 52. Rg8 {[%clk 0:00:07.3]}
52... Kh7 {[%clk 0:00:03.2]} 53. Rxg7+ {[%clk 0:00:07.3]} 53... Kh8 {[%clk
0:00:03.6]} 54. Rxf7 {[%clk 0:00:07.3]} 54... Ra1 {[%clk 0:00:04.3]} 55. Nf6
{[%clk 0:00:06.8]} 1-0

[Event "Early-Titled-Tuesday-Blitz-February-06-2024"]
[Site "Chess.com"]
[Date "2024.02.06"]
[Round "5"]
[White "CFalcons8"]
[Black "FARIZA2018"]
[Result "0-1"]
[WhiteElo "2317"]
[BlackElo "2516"]
[TimeControl "180+1"]
[EndTime "8:56:36 PST"]
[Termination "FARIZA2018 won by resignation"]

1. e4 {[%clk 0:02:57.9]} 1... e5 {[%clk 0:02:59.9]} 2. Nf3 {[%clk 0:02:56.2]}
2... Nc6 {[%clk 0:03:00.1]} 3. Bb5 {[%clk 0:02:54.7]} 3... a6 {[%clk 0:03:00.4]}
4. Ba4 {[%clk 0:02:54.8]} 4... Nf6 {[%clk 0:03:00.7]} 5. O-O {[%clk 0:02:55.3]}
5... Be7 {[%clk 0:03:00.9]} 6. Re1 {[%clk 0:02:52.8]} 6... b5 {[%clk 0:03:00.7]}
7. Bb3 {[%clk 0:02:52.7]} 7... d6 {[%clk 0:03:00.6]} 8. c3 {[%clk 0:02:49.8]}
8... O-O {[%clk 0:03:00.4]} 9. h3 {[%clk 0:02:45]} 9... Bb7 {[%clk 0:03:00]} 10.
d4 {[%clk 0:02:44.8]} 10... Re8 {[%clk 0:03:00]} 11. Nbd2 {[%clk 0:02:32.5]}
11... Bf8 {[%clk 0:02:59.2]} 12. Bc2 {[%clk 0:02:31.7]} 12... Nb8 {[%clk
0:02:51]} 13. a4 {[%clk 0:02:22.3]} 13... Nbd7 {[%clk 0:02:42.9]} 14. Bd3 {[%clk
0:02:10.3]} 14... c6 {[%clk 0:02:03.7]} 15. Qc2 {[%clk 0:02:05.1]} 15... g6
{[%clk 0:02:01.3]} 16. Nf1 {[%clk 0:01:59.6]} 16... exd4 {[%clk 0:01:58.3]} 17.
cxd4 {[%clk 0:02:00.5]} 17... Bg7 {[%clk 0:01:57.6]} 18. g4 {[%clk 0:01:59.8]}
18... c5 {[%clk 0:01:45.2]} 19. axb5 {[%clk 0:01:54.4]} 19... axb5 {[%clk
0:01:44.6]} 20. Rxa8 {[%clk 0:01:55.3]} 20... Qxa8 {[%clk 0:01:42.1]} 21. dxc5
{[%clk 0:01:36.3]} 21... Nxc5 {[%clk 0:01:39.9]} 22. Ng3 {[%clk 0:01:08.6]}
22... Nxd3 {[%clk 0:01:37.4]} 23. Qxd3 {[%clk 0:01:09.5]} 23... Nxe4 {[%clk
0:01:34.2]} 24. Nxe4 {[%clk 0:00:57.9]} 24... Rxe4 {[%clk 0:01:32.8]} 25. Qxd6
{[%clk 0:00:48.1]} 25... Rxe1+ {[%clk 0:01:26.5]} 26. Nxe1 {[%clk 0:00:48.5]}
26... Qc8 {[%clk 0:01:22.9]} 27. Nd3 {[%clk 0:00:35.3]} 27... h5 {[%clk
0:01:21]} 28. gxh5 {[%clk 0:00:27.5]} 28... Qxh3 {[%clk 0:01:07.2]} 29. Qb8+
{[%clk 0:00:26.1]} 29... Bc8 {[%clk 0:00:45.8]} 30. hxg6 {[%clk 0:00:20.5]}
30... fxg6 {[%clk 0:00:45.5]} 31. Qxb5 {[%clk 0:00:14.3]} 31... Bf5 {[%clk
0:00:40.9]} 32. Nf4 {[%clk 0:00:11.2]} 32... Qg4+ {[%clk 0:00:40.6]} 33. Kh2
{[%clk 0:00:07.3]} 33... Kh7 {[%clk 0:00:34.4]} 34. Qe2 {[%clk 0:00:06.7]} 34...
Qh4+ {[%clk 0:00:33.4]} 35. Kg2 {[%clk 0:00:06]} 35... Bh6 {[%clk 0:00:29.7]}
36. Qf3 {[%clk 0:00:04.4]} 36... Qe7 {[%clk 0:00:22.6]} 37. Qg3 {[%clk
0:00:04.2]} 37... Qe4+ {[%clk 0:00:21.2]} 38. Qf3 {[%clk 0:00:04]} 38... Qc2
{[%clk 0:00:12.2]} 39. Be3 {[%clk 0:00:04.3]} 39... Be4 {[%clk 0:00:11.5]} 40.
Kg3 {[%clk 0:00:04.1]} 40... Bxf3 {[%clk 0:00:11.7]} 41. Kxf3 {[%clk 0:00:05]}
41... Qxb2 {[%clk 0:00:12.3]} 42. Nd3 {[%clk 0:00:05.4]} 42... Qb7+ {[%clk
0:00:12.2]} 43. Ke2 {[%clk 0:00:05.3]} 43... Bxe3 {[%clk 0:00:12.8]} 44. Kxe3
{[%clk 0:00:06.2]} 44... Kh6 {[%clk 0:00:13.2]} 45. Ne5 {[%clk 0:00:05.8]} 45...
Kg5 {[%clk 0:00:13.1]} 46. Nf3+ {[%clk 0:00:05.2]} 46... Kf6 {[%clk 0:00:12.9]}
47. Nd4 {[%clk 0:00:05.4]} 47... Qe7+ {[%clk 0:00:12]} 48. Kf3 {[%clk
0:00:05.4]} 48... Qd6 {[%clk 0:00:11.5]} 49. Ne2 {[%clk 0:00:05.8]} 49... Qd5+
{[%clk 0:00:11.6]} 50. Kg3 {[%clk 0:00:05.5]} 50... Qd3+ {[%clk 0:00:10.8]} 0-1

[Event "Early-Titled-Tuesday-Blitz-February-06-2024"]
[Site "Chess.com"]
[Date "2024.02.06"]
[Round "5"]
[White "mortngabriel"]
[Black "LaPiToB"]
[Result "1-0"]
[WhiteElo "2506"]
[BlackElo "2304"]
[TimeControl "180+1"]
[EndTime "8:56:36 PST"]
[Termination "mortngabriel won by resignation"]

1. e4 {[%clk 0:03:00.9]} 1... c6 {[%clk 0:02:59.3]} 2. Nf3 {[%clk 0:02:59.3]}
2... d5 {[%clk 0:02:57.9]} 3. Nc3 {[%clk 0:03:00.2]} 3... dxe4 {[%clk
0:02:57.5]} 4. Nxe4 {[%clk 0:02:59.9]} 4... Nf6 {[%clk 0:02:58.1]} 5. Qe2 {[%clk
0:03:00.4]} 5... Nxe4 {[%clk 0:02:57.3]} 6. Qxe4 {[%clk 0:03:01.3]} 6... Qa5
{[%clk 0:02:56.9]} 7. Bc4 {[%clk 0:02:56.1]} 7... Bf5 {[%clk 0:02:55.9]} 8. Qf4
{[%clk 0:02:56.6]} 8... e6 {[%clk 0:02:51.2]} 9. O-O {[%clk 0:02:52.5]} 9... Nd7
{[%clk 0:02:48.6]} 10. Re1 {[%clk 0:02:43.4]} 10... Be7 {[%clk 0:02:45.9]} 11.
c3 {[%clk 0:02:36.2]} 11... Nb6 {[%clk 0:02:28.1]} 12. Bb3 {[%clk 0:02:17.3]}
12... Nd5 {[%clk 0:02:20.2]} 13. Qg3 {[%clk 0:02:13.3]} 13... Bg6 {[%clk
0:02:04.3]} 14. Ne5 {[%clk 0:01:58.3]} 14... Bf6 {[%clk 0:01:49.2]} 15. d4
{[%clk 0:01:52.2]} 15... O-O-O {[%clk 0:01:20.7]} 16. h4 {[%clk 0:01:40.6]}
16... Bxe5 {[%clk 0:01:14.6]} 17. Qxe5 {[%clk 0:01:38]} 17... Qc7 {[%clk
0:01:10.2]} 18. Qxg7 {[%clk 0:01:30.5]} 18... Rhg8 {[%clk 0:01:05.9]} 19. Qe5
{[%clk 0:01:28.1]} 19... Qxe5 {[%clk 0:00:50.4]} 20. Rxe5 {[%clk 0:01:27.1]}
20... Bf5 {[%clk 0:00:38.8]} 21. Bd2 {[%clk 0:01:08.9]} 21... Rg4 {[%clk
0:00:37.7]} 22. g3 {[%clk 0:00:59.2]} 22... Rdg8 {[%clk 0:00:37.5]} 23. Kh2
{[%clk 0:00:58.4]} 23... Re4 {[%clk 0:00:29.2]} 24. Rxe4 {[%clk 0:00:53.2]}
24... Bxe4 {[%clk 0:00:30.1]} 25. Re1 {[%clk 0:00:53.6]} 25... Nf6 {[%clk
0:00:26.9]} 26. Bg5 {[%clk 0:00:22.9]} 26... Ng4+ {[%clk 0:00:26.4]} 27. Kg1
{[%clk 0:00:23.5]} 27... Bf3 {[%clk 0:00:25.5]} 28. Bd1 {[%clk 0:00:22]} 28...
Bxd1 {[%clk 0:00:23.1]} 29. Rxd1 {[%clk 0:00:22.9]} 29... f6 {[%clk 0:00:21.4]}
30. Bf4 {[%clk 0:00:22.5]} 30... e5 {[%clk 0:00:20.6]} 31. dxe5 {[%clk
0:00:22.6]} 31... fxe5 {[%clk 0:00:21.5]} 32. Bg5 {[%clk 0:00:23]} 32... h6
{[%clk 0:00:20]} 33. Bc1 {[%clk 0:00:21.8]} 33... e4 {[%clk 0:00:17.7]} 34. Kg2
{[%clk 0:00:21]} 34... Rf8 {[%clk 0:00:12.8]} 35. Bf4 {[%clk 0:00:21]} 35... e3
{[%clk 0:00:11.3]} 36. fxe3 {[%clk 0:00:20.9]} 36... Rxf4 {[%clk 0:00:11.4]} 37.
exf4 {[%clk 0:00:12]} 37... Ne3+ {[%clk 0:00:11.7]} 38. Kf3 {[%clk 0:00:12.7]}
38... Nxd1 {[%clk 0:00:12.3]} 39. g4 {[%clk 0:00:12.8]} 39... Kd7 {[%clk
0:00:12]} 40. g5 {[%clk 0:00:10]} 40... hxg5 {[%clk 0:00:11.2]} 41. fxg5 {[%clk
0:00:10.9]} 41... Ke7 {[%clk 0:00:10.8]} 42. h5 {[%clk 0:00:10.9]} 42... Kf7
{[%clk 0:00:10.7]} 43. Kf4 {[%clk 0:00:06.4]} 43... Nxb2 {[%clk 0:00:10.2]} 44.
Ke5 {[%clk 0:00:04.8]} 44... Nd1 {[%clk 0:00:09.4]} 45. c4 {[%clk 0:00:01.2]}
45... Ne3 {[%clk 0:00:09.6]} 46. Kd6 {[%clk 0:00:01.4]} 46... Nxc4+ {[%clk
0:00:09.7]} 47. Kc7 {[%clk 0:00:02.3]} 47... b5 {[%clk 0:00:09.6]} 48. Kxc6
{[%clk 0:00:02.8]} 48... a6 {[%clk 0:00:10.3]} 49. Kc5 {[%clk 0:00:01.5]} 49...
Nd2 {[%clk 0:00:09]} 50. Kb6 {[%clk 0:00:01.6]} 50... Ne4 {[%clk 0:00:09.3]} 51.
Kxa6 {[%clk 0:00:02]} 51... Nxg5 {[%clk 0:00:09.2]} 52. Kxb5 {[%clk 0:00:02.1]}
52... Ne6 {[%clk 0:00:07.4]} 53. a4 {[%clk 0:00:02.5]} 53... Nf4 {[%clk
0:00:07.1]} 54. a5 {[%clk 0:00:02.6]} 54... Nxh5 {[%clk 0:00:07.1]} 55. a6
{[%clk 0:00:03]} 55... Nf6 {[%clk 0:00:07.4]} 56. a7 {[%clk 0:00:03.4]} 56...
Ne8 {[%clk 0:00:05.7]} 57. Kc6 {[%clk 0:00:03.3]} 57... Nf6 {[%clk 0:00:04.5]}
58. a8=Q {[%clk 0:00:04]} 58... Ke6 {[%clk 0:00:04.2]} 59. Qa2+ {[%clk
0:00:04.5]} 59... Kf5 {[%clk 0:00:05.1]} 60. Qf2+ {[%clk 0:00:04.8]} 60... Ke5
{[%clk 0:00:05.3]} 61. Qb2+ {[%clk 0:00:04.2]} 61... Kf4 {[%clk 0:00:05.4]} 62.
Qxf6+ {[%clk 0:00:03.7]} 62... Ke4 {[%clk 0:00:05.4]} 63. Qd6 {[%clk 0:00:04.6]}
63... Kf5 {[%clk 0:00:05.5]} 64. Qd5+ {[%clk 0:00:05.5]} 64... Kf4 {[%clk
0:00:05.8]} 65. Kc5 {[%clk 0:00:06.4]} 1-0

[Event "Early-Titled-Tuesday-Blitz-February-06-2024"]
[Site "Chess.com"]
[Date "2024.02.06"]
[Round "5"]
[White "Chessdreamer2020"]
[Black "KorolDimitriy75"]
[Result "1-0"]
[WhiteElo "2555"]
[BlackElo "2375"]
[TimeControl "180+1"]
[EndTime "8:56:37 PST"]
[Termination "Chessdreamer2020 won on time"]

1. e4 {[%clk 0:01:54.5]} 1... c5 {[%clk 0:03:00.1]} 2. Nf3 {[%clk 0:01:54]} 2...
d6 {[%clk 0:03:00.3]} 3. d4 {[%clk 0:01:53.8]} 3... cxd4 {[%clk 0:03:01.2]} 4.
Qxd4 {[%clk 0:01:54.7]} 4... a6 {[%clk 0:03:00.8]} 5. h3 {[%clk 0:01:53.9]} 5...
Nc6 {[%clk 0:03:01.2]} 6. Qe3 {[%clk 0:01:54.5]} 6... g6 {[%clk 0:03:01.1]} 7.
Be2 {[%clk 0:01:54.9]} 7... Bg7 {[%clk 0:03:00.8]} 8. O-O {[%clk 0:01:55.4]}
8... Nf6 {[%clk 0:03:00.9]} 9. Rd1 {[%clk 0:01:56]} 9... O-O {[%clk 0:02:57.5]}
10. c4 {[%clk 0:01:56.3]} 10... Nd7 {[%clk 0:02:56]} 11. Nc3 {[%clk 0:01:56.6]}
11... Nc5 {[%clk 0:02:52.2]} 12. Rb1 {[%clk 0:01:56.6]} 12... a5 {[%clk
0:02:51.8]} 13. b3 {[%clk 0:01:56.5]} 13... Be6 {[%clk 0:02:34.8]} 14. Bb2
{[%clk 0:01:55.3]} 14... Qb6 {[%clk 0:02:08]} 15. Nd5 {[%clk 0:01:54]} 15...
Bxd5 {[%clk 0:01:42.3]} 16. exd5 {[%clk 0:01:54.9]} 16... Nb4 {[%clk 0:01:38.1]}
17. Bxg7 {[%clk 0:01:51.3]} 17... Kxg7 {[%clk 0:01:39]} 18. a3 {[%clk
0:01:48.5]} 18... Nba6 {[%clk 0:01:32.3]} 19. b4 {[%clk 0:01:42]} 19... axb4
{[%clk 0:01:17.3]} 20. axb4 {[%clk 0:01:42.9]} 20... Nd7 {[%clk 0:01:04.4]} 21.
Qc3+ {[%clk 0:00:54.5]} 21... Kg8 {[%clk 0:01:03.7]} 22. Bf1 {[%clk 0:00:54.8]}
22... Rfe8 {[%clk 0:00:58.2]} 23. Qd2 {[%clk 0:00:53.9]} 23... Rac8 {[%clk
0:00:52.3]} 24. Qh6 {[%clk 0:00:53.1]} 24... Nf8 {[%clk 0:00:40.1]} 25. Rd4
{[%clk 0:00:52.9]} 25... e5 {[%clk 0:00:32.5]} 26. Rh4 {[%clk 0:00:44.7]} 26...
f6 {[%clk 0:00:26.3]} 27. Bd3 {[%clk 0:00:42.5]} 27... Re7 {[%clk 0:00:20.3]}
28. Qd2 {[%clk 0:00:39.7]} 28... f5 {[%clk 0:00:17.5]} 29. Bf1 {[%clk
0:00:39.4]} 29... Rce8 {[%clk 0:00:14.5]} 30. Ng5 {[%clk 0:00:36.2]} 30... e4
{[%clk 0:00:13.2]} 31. Qe3 {[%clk 0:00:24.5]} 31... Qxe3 {[%clk 0:00:11.6]} 32.
fxe3 {[%clk 0:00:25.4]} 32... Rc8 {[%clk 0:00:11.3]} 33. Rf4 {[%clk 0:00:24.5]}
33... Kg7 {[%clk 0:00:10.9]} 34. h4 {[%clk 0:00:24.9]} 34... h6 {[%clk
0:00:11.2]} 35. Nh3 {[%clk 0:00:25.5]} 35... Nh7 {[%clk 0:00:11.2]} 36. g4
{[%clk 0:00:25.7]} 36... Rf8 {[%clk 0:00:10]} 37. gxf5 {[%clk 0:00:24.8]} 37...
Rxf5 {[%clk 0:00:10.2]} 38. Rxf5 {[%clk 0:00:24.3]} 38... gxf5 {[%clk
0:00:11.1]} 39. Nf4 {[%clk 0:00:25.2]} 39... Nf6 {[%clk 0:00:11]} 40. Ne6+
{[%clk 0:00:25.3]} 40... Kf7 {[%clk 0:00:11.1]} 41. Be2 {[%clk 0:00:25.4]} 41...
Nc7 {[%clk 0:00:08.6]} 42. Nd4 {[%clk 0:00:24.8]} 42... f4 {[%clk 0:00:06.6]}
43. exf4 {[%clk 0:00:24.7]} 43... e3 {[%clk 0:00:07.5]} 44. Bd3 {[%clk
0:00:20.4]} 44... Ng4 {[%clk 0:00:05.9]} 45. Kg2 {[%clk 0:00:19.8]} 45... Nf2
{[%clk 0:00:05.8]} 46. Be2 {[%clk 0:00:19.7]} 46... Re4 {[%clk 0:00:04.8]} 47.
Bh5+ {[%clk 0:00:17.3]} 47... Kf6 {[%clk 0:00:04.8]} 48. Ne2 {[%clk 0:00:17]}
48... Rxc4 {[%clk 0:00:04.6]} 49. Kf3 {[%clk 0:00:16.3]} 49... Nxd5 {[%clk
0:00:04.7]} 50. Rg1 {[%clk 0:00:14.4]} 50... Rxb4 {[%clk 0:00:03.6]} 51. Rg6+
{[%clk 0:00:14.7]} 51... Ke7 {[%clk 0:00:04]} 52. Rxh6 {[%clk 0:00:14]} 52...
Nd3 {[%clk 0:00:03.8]} 53. Rh7+ {[%clk 0:00:13.5]} 53... Kd8 {[%clk 0:00:04.2]}
54. Bf7 {[%clk 0:00:11.8]} 54... N5xf4 {[%clk 0:00:03.3]} 55. Kxe3 {[%clk
0:00:07.9]} 55... Nxe2 {[%clk 0:00:01.5]} 56. Kxe2 {[%clk 0:00:08.8]} 56... Ne5
{[%clk 0:00:01.5]} 57. Be6 {[%clk 0:00:07.3]} 1-0

[Event "Early-Titled-Tuesday-Blitz-February-06-2024"]
[Site "Chess.com"]
[Date "2024.02.06"]
[Round "5"]
[White "rasmussvane"]
[Black "mbojan"]
[Result "1-0"]
[WhiteElo "2971"]
[BlackElo "2874"]
[TimeControl "180+1"]
[EndTime "8:56:38 PST"]
[Termination "rasmussvane won on time"]

1. Nf3 {[%clk 0:03:00.4]} 1... Nf6 {[%clk 0:02:56.8]} 2. g3 {[%clk 0:02:58.8]}
2... e6 {[%clk 0:02:56.8]} 3. Bg2 {[%clk 0:02:58.9]} 3... d5 {[%clk 0:02:56.8]}
4. O-O {[%clk 0:02:59]} 4... Bd6 {[%clk 0:02:55.2]} 5. c4 {[%clk 0:02:57.4]}
5... O-O {[%clk 0:02:54]} 6. d4 {[%clk 0:02:49.2]} 6... h6 {[%clk 0:02:53.5]} 7.
Nc3 {[%clk 0:02:43.8]} 7... Nc6 {[%clk 0:02:53.2]} 8. a3 {[%clk 0:01:57.1]} 8...
dxc4 {[%clk 0:02:45.9]} 9. Qa4 {[%clk 0:01:54.5]} 9... e5 {[%clk 0:02:11.3]} 10.
dxe5 {[%clk 0:01:48.2]} 10... Nxe5 {[%clk 0:02:09.9]} 11. Nxe5 {[%clk 0:01:48]}
11... Bxe5 {[%clk 0:02:09.7]} 12. Qxc4 {[%clk 0:01:45.2]} 12... c6 {[%clk
0:02:09.2]} 13. Bf4 {[%clk 0:01:38]} 13... Be6 {[%clk 0:02:02.7]} 14. Qb4 {[%clk
0:01:36.3]} 14... Bxf4 {[%clk 0:01:55.3]} 15. Qxf4 {[%clk 0:01:32]} 15... Qb6
{[%clk 0:01:47.4]} 16. Qb4 {[%clk 0:01:21.8]} 16... Qxb4 {[%clk 0:01:24.4]} 17.
axb4 {[%clk 0:01:22]} 17... a6 {[%clk 0:01:25.2]} 18. Na4 {[%clk 0:01:05.8]}
18... Rad8 {[%clk 0:01:22]} 19. Nc5 {[%clk 0:01:02.5]} 19... Bc8 {[%clk
0:01:21.3]} 20. Rfd1 {[%clk 0:01:00.8]} 20... Nd7 {[%clk 0:01:15.4]} 21. Nd3
{[%clk 0:00:58.7]} 21... Rfe8 {[%clk 0:01:13.7]} 22. e4 {[%clk 0:00:57.8]} 22...
Nb6 {[%clk 0:00:49]} 23. f3 {[%clk 0:00:46.1]} 23... Nc4 {[%clk 0:00:47.6]} 24.
Kf2 {[%clk 0:00:45.8]} 24... Kf8 {[%clk 0:00:46.2]} 25. b3 {[%clk 0:00:44]}
25... Nd6 {[%clk 0:00:38.4]} 26. Rac1 {[%clk 0:00:35.8]} 26... g6 {[%clk
0:00:24.1]} 27. Bf1 {[%clk 0:00:35.1]} 27... f6 {[%clk 0:00:16]} 28. Be2 {[%clk
0:00:26.2]} 28... Nf7 {[%clk 0:00:15.6]} 29. Nc5 {[%clk 0:00:23.9]} 29... Rxd1
{[%clk 0:00:10.1]} 30. Rxd1 {[%clk 0:00:24.8]} 30... Rd8 {[%clk 0:00:08.6]} 31.
Rxd8+ {[%clk 0:00:22.7]} 31... Nxd8 {[%clk 0:00:09.5]} 32. Ke3 {[%clk
0:00:23.2]} 32... Ke7 {[%clk 0:00:09]} 33. f4 {[%clk 0:00:23.6]} 33... Nf7
{[%clk 0:00:08]} 34. Bd3 {[%clk 0:00:22.8]} 34... g5 {[%clk 0:00:07]} 35. Kd4
{[%clk 0:00:21.7]} 35... Nd8 {[%clk 0:00:04.4]} 36. h4 {[%clk 0:00:18.6]} 36...
Nf7 {[%clk 0:00:02.3]} 37. e5 {[%clk 0:00:16.8]} 37... fxe5+ {[%clk 0:00:02.5]}
38. fxe5 {[%clk 0:00:17.4]} 38... gxh4 {[%clk 0:00:03.4]} 39. gxh4 {[%clk
0:00:17.9]} 39... Nd8 {[%clk 0:00:04.2]} 40. Bc4 {[%clk 0:00:17.6]} 40... Bg4
{[%clk 0:00:03.7]} 41. Ke3 {[%clk 0:00:12.2]} 41... Bc8 {[%clk 0:00:03.7]} 42.
Kf4 {[%clk 0:00:12.7]} 42... Bh3 {[%clk 0:00:04.4]} 43. Ne4 {[%clk 0:00:13]}
43... Be6 {[%clk 0:00:04.1]} 44. Nd6 {[%clk 0:00:12.9]} 44... Bxc4 {[%clk
0:00:04.2]} 45. bxc4 {[%clk 0:00:13.5]} 45... b6 {[%clk 0:00:04.7]} 46. Nc8+
{[%clk 0:00:13.8]} 46... Ke6 {[%clk 0:00:05.3]} 47. Nxb6 {[%clk 0:00:14.7]}
47... Nf7 {[%clk 0:00:06]} 48. Kg4 {[%clk 0:00:10.9]} 48... Nxe5+ {[%clk
0:00:06.4]} 49. Kh5 {[%clk 0:00:11.6]} 49... Nd3 {[%clk 0:00:05.3]} 50. Kxh6
{[%clk 0:00:09.9]} 50... Nxb4 {[%clk 0:00:02.8]} 51. Kg7 {[%clk 0:00:08.5]}
51... Nd3 {[%clk 0:00:02.5]} 52. h5 {[%clk 0:00:08.7]} 52... Nf4 {[%clk
0:00:02.2]} 53. h6 {[%clk 0:00:09.3]} 53... Kf5 {[%clk 0:00:03]} 54. h7 {[%clk
0:00:09.2]} 54... Ng6 {[%clk 0:00:03.7]} 55. c5 {[%clk 0:00:07.8]} 55... a5
{[%clk 0:00:04.1]} 56. Na4 {[%clk 0:00:07]} 56... Kg5 {[%clk 0:00:04.5]} 57. Nb2
{[%clk 0:00:06.5]} 57... Kf5 {[%clk 0:00:04.3]} 58. Na4 {[%clk 0:00:05.9]} 58...
Kg5 {[%clk 0:00:04.8]} 59. Nc3 {[%clk 0:00:05.9]} 59... Kf5 {[%clk 0:00:04.6]}
60. Ne2 {[%clk 0:00:05.3]} 60... a4 {[%clk 0:00:04.5]} 61. Nd4+ {[%clk
0:00:05.9]} 61... Kg5 {[%clk 0:00:03.4]} 62. Nxc6 {[%clk 0:00:06.5]} 62... a3
{[%clk 0:00:04.1]} 63. Nb4 {[%clk 0:00:07]} 63... Kf5 {[%clk 0:00:04.1]} 64. c6
{[%clk 0:00:07.3]} 1-0